[Event "November 21 Early 2023"]
[Site "https://www.chess.com"]
[Date "2023.11.21"]
[Round "4"]
[White "Witty_Alien"]
[Black "Reprintsev, Alexander"]
[Result "1-0"]
[Board "180"]
[TimeControl "180+1"]
[BlackFideId "14100541"]
[WhiteElo "2278"]
[BlackElo "2229"]
[BlackTeam "UKR"]
[WhiteClock "0:00:03"]
[BlackClock "0:00:00"]

1. e4 {[%clk 0:03:00]}  d5 {[%clk 0:02:59]} 2. exd5 {[%clk 0:03:00]}  Qxd5 {[%clk 0:02:58]} 3. Nc3 {[%clk 0:03:00]}  Qa5 {[%clk 0:02:58]} 4. b4 {[%clk 0:03:00]}  Qxb4 {[%clk 0:02:57]} 5. Rb1 {[%clk 0:03:01]}  Qd6 {[%clk 0:02:57]} 6. Nf3 {[%clk 0:02:59]}  Nf6 {[%clk 0:02:56]} 7. Bc4 {[%clk 0:02:57]}  e6 {[%clk 0:02:56]} 8. d4 {[%clk 0:02:56]}  Be7 {[%clk 0:02:53]} 9. O-O {[%clk 0:02:50]}  O-O {[%clk 0:02:52]} 10. Ne5 {[%clk 0:02:27]}  Nc6 {[%clk 0:02:49]} 11. Bf4 {[%clk 0:02:13]}  Nxe5 {[%clk 0:02:27]} 12. Bxe5 {[%clk 0:01:56]}  Qc6 {[%clk 0:02:24]} 13. Bd3 {[%clk 0:01:04]}  Qxc3 {[%clk 0:02:18]} 14. Rb3 {[%clk 0:01:04]}  Qc6 {[%clk 0:02:17]} 15. Bxf6 {[%clk 0:01:04]}  Re8 {[%clk 0:01:21]} 16. Bxh7+ {[%clk 0:00:58]}  Kf8 {[%clk 0:01:21]} 17. Bxg7+ {[%clk 0:00:50]}  Kxg7 {[%clk 0:01:21]} 18. Qg4+ {[%clk 0:00:44]}  Bg5 {[%clk 0:01:14]} 19. Qxg5+ {[%clk 0:00:42]}  Kf8 {[%clk 0:01:14]} 20. Rh3 {[%clk 0:00:32]}  e5 {[%clk 0:01:05]} 21. Be4 {[%clk 0:00:31]}  Bxh3 {[%clk 0:00:45]} 22. Bxc6 {[%clk 0:00:30]}  bxc6 {[%clk 0:00:39]} 23. Qh6+ {[%clk 0:00:23]}  Ke7 {[%clk 0:00:38]} 24. Qxh3 {[%clk 0:00:17]}  exd4 {[%clk 0:00:36]} 25. Re1+ {[%clk 0:00:16]}  Kd6 {[%clk 0:00:37]} 26. Qg3+ {[%clk 0:00:16]}  Kc5 {[%clk 0:00:36]} 27. Qa3+ {[%clk 0:00:16]}  Kd5 {[%clk 0:00:36]} 28. Qb3+ {[%clk 0:00:16]}  Kc5 {[%clk 0:00:35]} 29. Qa3+ {[%clk 0:00:16]}  Kd5 {[%clk 0:00:35]} 30. Qf3+ {[%clk 0:00:17]}  Kc5 {[%clk 0:00:34]} 31. Qf5+ {[%clk 0:00:17]}  Kd6 {[%clk 0:00:28]} 32. Qf6+ {[%clk 0:00:16]}  Kc5 {[%clk 0:00:28]} 33. Qg5+ {[%clk 0:00:12]}  Kc4 {[%clk 0:00:25]} 34. Rd1 {[%clk 0:00:08]}  Rad8 {[%clk 0:00:17]} 35. Qf6 {[%clk 0:00:06]}  c5 {[%clk 0:00:11]} 36. Qxf7+ {[%clk 0:00:06]}  Kb5 {[%clk 0:00:10]} 37. Rb1+ {[%clk 0:00:07]}  Kc6 {[%clk 0:00:10]} 38. Qf6+ {[%clk 0:00:04]}  Kd5 {[%clk 0:00:10]} 39. h4 {[%clk 0:00:04]}  Rf8 {[%clk 0:00:06]} 40. Qg5+ {[%clk 0:00:04]}  Kc4 {[%clk 0:00:06]} 41. h5 {[%clk 0:00:03]}  Rd6 {[%clk 0:00:05]} 42. Qd2 {[%clk 0:00:03]}  Rh8 {[%clk 0:00:02]} 43. Qd3+ {[%clk 0:00:02]}  Kd5 {[%clk 0:00:02]} 44. Qf3+ {[%clk 0:00:03]}  Ke6 {[%clk 0:00:01]} 45. Re1+ {[%clk 0:00:03]}  Kd7 {[%clk 0:00:01]} 46. Qf7+ {[%clk 0:00:02]}  Kc6 {[%clk 0:00:00]} 47. Re7 {[%clk 0:00:03]} 1-0

[Event "November 21 Early 2023"]
[Site "https://www.chess.com"]
[Date "2023.11.21"]
[Round "4"]
[White "Skibbe, Willi"]
[Black "HeroWilczek"]
[Result "1-0"]
[Board "182"]
[TimeControl "180+1"]
[WhiteFideId "4682190"]
[WhiteElo "2253"]
[BlackElo "2475"]
[WhiteTeam "GER"]
[WhiteClock "0:00:03"]
[BlackClock "0:00:21"]

1. e4 {[%clk 0:03:00]}  c6 {[%clk 0:02:58]} 2. Nf3 {[%clk 0:02:59]}  d5 {[%clk 0:02:59]} 3. exd5 {[%clk 0:03:00]}  cxd5 {[%clk 0:02:59]} 4. Ne5 {[%clk 0:02:58]}  Nc6 {[%clk 0:02:58]} 5. Bb5 {[%clk 0:02:54]}  Qb6 {[%clk 0:02:52]} 6. Nc3 {[%clk 0:02:33]}  Nf6 {[%clk 0:02:51]} 7. O-O {[%clk 0:02:32]}  e6 {[%clk 0:02:50]} 8. d4 {[%clk 0:02:28]}  Bd6 {[%clk 0:02:48]} 9. Bg5 {[%clk 0:02:23]}  Nd7 {[%clk 0:02:27]} 10. Ng4 {[%clk 0:01:25]}  h6 {[%clk 0:02:11]} 11. Be3 {[%clk 0:01:07]}  Qc7 {[%clk 0:02:11]} 12. Bd3 {[%clk 0:01:01]}  a6 {[%clk 0:02:07]} 13. f4 {[%clk 0:00:47]}  h5 {[%clk 0:01:58]} 14. Ne5 {[%clk 0:00:45]}  Nf6 {[%clk 0:01:44]} 15. Qe1 {[%clk 0:00:19]}  Bxe5 {[%clk 0:01:39]} 16. fxe5 {[%clk 0:00:18]}  Ng4 {[%clk 0:01:39]} 17. h3 {[%clk 0:00:17]}  Nxe3 {[%clk 0:01:37]} 18. Qxe3 {[%clk 0:00:18]}  Qb6 {[%clk 0:01:28]} 19. Na4 {[%clk 0:00:15]}  Qxd4 {[%clk 0:01:26]} 20. Qxd4 {[%clk 0:00:15]}  Nxd4 {[%clk 0:01:27]} 21. Nb6 {[%clk 0:00:14]}  Rb8 {[%clk 0:01:23]} 22. c4 {[%clk 0:00:15]}  dxc4 {[%clk 0:01:19]} 23. Nxc4 {[%clk 0:00:16]}  O-O {[%clk 0:01:17]} 24. Nd6 {[%clk 0:00:16]}  Bd7 {[%clk 0:01:02]} 25. Rf4 {[%clk 0:00:10]}  Nc6 {[%clk 0:01:00]} 26. Re1 {[%clk 0:00:11]}  f6 {[%clk 0:00:55]} 27. exf6 {[%clk 0:00:09]}  Rxf6 {[%clk 0:00:55]} 28. Rfe4 {[%clk 0:00:07]}  e5 {[%clk 0:00:51]} 29. Nc4 {[%clk 0:00:07]}  Bf5 {[%clk 0:00:48]} 30. R4e3 {[%clk 0:00:06]}  Bxd3 {[%clk 0:00:47]} 31. Rxd3 {[%clk 0:00:07]}  Re8 {[%clk 0:00:46]} 32. Rd7 {[%clk 0:00:07]}  b5 {[%clk 0:00:41]} 33. Nd6 {[%clk 0:00:07]}  Ree6 {[%clk 0:00:33]} 34. Ne4 {[%clk 0:00:07]}  Rg6 {[%clk 0:00:28]} 35. Kh2 {[%clk 0:00:07]}  Nd4 {[%clk 0:00:28]} 36. Nc5 {[%clk 0:00:06]}  Ref6 {[%clk 0:00:26]} 37. Rxe5 {[%clk 0:00:05]}  Rf2 {[%clk 0:00:27]} 38. Rd8+ {[%clk 0:00:05]}  Kh7 {[%clk 0:00:26]} 39. Rxh5+ {[%clk 0:00:05]}  Rh6 {[%clk 0:00:27]} 40. Rxh6+ {[%clk 0:00:04]}  Kxh6 {[%clk 0:00:27]} 41. Rxd4 {[%clk 0:00:05]}  Rxb2 {[%clk 0:00:27]} 42. Nxa6 {[%clk 0:00:05]}  Rxa2 {[%clk 0:00:27]} 43. Nc7 {[%clk 0:00:06]}  Rb2 {[%clk 0:00:27]} 44. Rd6+ {[%clk 0:00:05]}  Kh7 {[%clk 0:00:27]} 45. Rb6 {[%clk 0:00:05]}  b4 {[%clk 0:00:26]} 46. Nd5 {[%clk 0:00:06]}  b3 {[%clk 0:00:27]} 47. Ne3 {[%clk 0:00:06]}  Rb1 {[%clk 0:00:25]} 48. Nc4 {[%clk 0:00:06]}  Rc1 {[%clk 0:00:25]} 49. Nd2 {[%clk 0:00:04]}  Rc2 {[%clk 0:00:20]} 50. Nxb3 {[%clk 0:00:03]}  Rb2 {[%clk 0:00:21]} 1-0

[Event "November 21 Early 2023"]
[Site "https://www.chess.com"]
[Date "2023.11.21"]
[Round "4"]
[White "Pourkashiyan, Atousa"]
[Black "Jimenez Fernandez, Rebeca"]
[Result "1-0"]
[Board "184"]
[TimeControl "180+1"]
[WhiteFideId "12502014"]
[BlackFideId "32070934"]
[WhiteElo "2221"]
[BlackElo "2015"]
[WhiteTeam "USA"]
[BlackTeam "ESP"]
[WhiteClock "0:00:16"]
[BlackClock "0:00:05"]

1. e4 {[%clk 0:02:52]}  c5 {[%clk 0:03:00]} 2. Nf3 {[%clk 0:02:52]}  Nc6 {[%clk 0:03:00]} 3. d4 {[%clk 0:02:47]}  cxd4 {[%clk 0:03:01]} 4. Nxd4 {[%clk 0:02:48]}  g6 {[%clk 0:03:02]} 5. c4 {[%clk 0:02:45]}  Bg7 {[%clk 0:03:02]} 6. Be3 {[%clk 0:02:45]}  Nf6 {[%clk 0:03:03]} 7. Nc3 {[%clk 0:02:45]}  Ng4 {[%clk 0:03:04]} 8. Qxg4 {[%clk 0:02:45]}  Nxd4 {[%clk 0:03:05]} 9. Qd1 {[%clk 0:02:45]}  Ne6 {[%clk 0:03:05]} 10. Qd2 {[%clk 0:02:43]}  Qa5 {[%clk 0:03:06]} 11. Be2 {[%clk 0:02:41]}  b6 {[%clk 0:03:06]} 12. O-O {[%clk 0:02:41]}  g5 {[%clk 0:03:05]} 13. a3 {[%clk 0:02:33]}  Bxc3 {[%clk 0:03:00]} 14. bxc3 {[%clk 0:02:33]}  Ba6 {[%clk 0:02:58]} 15. Rfe1 {[%clk 0:02:23]}  Rc8 {[%clk 0:02:56]} 16. c5 {[%clk 0:02:16]}  Bxe2 {[%clk 0:02:53]} 17. Rxe2 {[%clk 0:02:16]}  Nxc5 {[%clk 0:02:50]} 18. Rd1 {[%clk 0:01:56]}  d6 {[%clk 0:02:41]} 19. Bxg5 {[%clk 0:01:46]}  Rg8 {[%clk 0:02:22]} 20. e5 {[%clk 0:01:20]}  Ne6 {[%clk 0:02:00]} 21. exd6 {[%clk 0:00:51]}  Qxg5 {[%clk 0:00:38]} 22. d7+ {[%clk 0:00:42]}  Kd8 {[%clk 0:00:38]} 23. dxc8=Q+ {[%clk 0:00:40]}  Kxc8 {[%clk 0:00:39]} 24. Qxg5 {[%clk 0:00:32]}  Rxg5 {[%clk 0:00:39]} 25. g3 {[%clk 0:00:28]}  Rc5 {[%clk 0:00:36]} 26. Re3 {[%clk 0:00:27]}  Ra5 {[%clk 0:00:34]} 27. c4 {[%clk 0:00:24]}  h5 {[%clk 0:00:27]} 28. Rd5 {[%clk 0:00:22]}  Ra4 {[%clk 0:00:25]} 29. Rxh5 {[%clk 0:00:20]}  Rxc4 {[%clk 0:00:26]} 30. Rh7 {[%clk 0:00:19]}  Ng5 {[%clk 0:00:19]} 31. Rg7 {[%clk 0:00:19]}  f6 {[%clk 0:00:06]} 32. Rexe7 {[%clk 0:00:16]}  Rc3 {[%clk 0:00:05]} 33. Re8# {[%clk 0:00:16]} 1-0

[Event "November 21 Early 2023"]
[Site "https://www.chess.com"]
[Date "2023.11.21"]
[Round "4"]
[White "Preobrazhenska_D2011"]
[Black "pinguino120"]
[Result "1-0"]
[Board "185"]
[TimeControl "180+1"]
[WhiteElo "2463"]
[BlackElo "2235"]
[WhiteClock "0:01:21"]
[BlackClock "0:01:30"]

1. e4 {[%clk 0:02:59]}  c5 {[%clk 0:02:58]} 2. Nf3 {[%clk 0:02:58]}  a6 {[%clk 0:02:59]} 3. c3 {[%clk 0:02:56]}  e6 {[%clk 0:02:56]} 4. d4 {[%clk 0:02:55]}  d5 {[%clk 0:02:47]} 5. e5 {[%clk 0:02:55]}  Bd7 {[%clk 0:02:47]} 6. Be2 {[%clk 0:02:50]}  Bb5 {[%clk 0:02:45]} 7. O-O {[%clk 0:02:37]}  Bxe2 {[%clk 0:02:42]} 8. Qxe2 {[%clk 0:02:38]}  Nc6 {[%clk 0:02:43]} 9. Be3 {[%clk 0:02:38]}  Nge7 {[%clk 0:02:42]} 10. a3 {[%clk 0:02:29]}  Nf5 {[%clk 0:02:35]} 11. b4 {[%clk 0:02:27]}  cxd4 {[%clk 0:02:35]} 12. cxd4 {[%clk 0:02:27]}  Qb6 {[%clk 0:02:33]} 13. Nc3 {[%clk 0:02:21]}  Rc8 {[%clk 0:02:21]} 14. Qd3 {[%clk 0:02:21]}  Be7 {[%clk 0:02:14]} 15. Nxd5 {[%clk 0:02:17]}  exd5 {[%clk 0:02:09]} 16. Qxf5 {[%clk 0:02:17]}  O-O {[%clk 0:02:08]} 17. Rac1 {[%clk 0:02:07]}  a5 {[%clk 0:02:08]} 18. bxa5 {[%clk 0:01:53]}  Qxa5 {[%clk 0:02:04]} 19. e6 {[%clk 0:01:28]}  Bxa3 {[%clk 0:01:50]} 20. exf7+ {[%clk 0:01:25]}  Kh8 {[%clk 0:01:30]} 21. Ng5 {[%clk 0:01:21]} 1-0

[Event "November 21 Early 2023"]
[Site "https://www.chess.com"]
[Date "2023.11.21"]
[Round "4"]
[White "le-castor-faineant"]
[Black "Manukyan, Sargis V."]
[Result "1-0"]
[Board "186"]
[TimeControl "180+1"]
[BlackFideId "13303465"]
[WhiteElo "2234"]
[BlackElo "2236"]
[BlackTeam "ARM"]
[WhiteClock "0:00:19"]
[BlackClock "0:00:12"]

1. e4 {[%clk 0:02:51]}  c5 {[%clk 0:02:58]} 2. Nf3 {[%clk 0:02:51]}  Nc6 {[%clk 0:02:58]} 3. c3 {[%clk 0:02:44]}  d5 {[%clk 0:02:56]} 4. exd5 {[%clk 0:02:44]}  Qxd5 {[%clk 0:02:57]} 5. d4 {[%clk 0:02:45]}  Nf6 {[%clk 0:02:57]} 6. Na3 {[%clk 0:02:45]}  cxd4 {[%clk 0:02:54]} 7. Bc4 {[%clk 0:02:44]}  Qd8 {[%clk 0:02:40]} 8. cxd4 {[%clk 0:02:36]}  e6 {[%clk 0:02:36]} 9. O-O {[%clk 0:02:33]}  Be7 {[%clk 0:02:29]} 10. Nc2 {[%clk 0:02:28]}  O-O {[%clk 0:02:29]} 11. Bf4 {[%clk 0:02:27]}  b6 {[%clk 0:02:25]} 12. h3 {[%clk 0:02:19]}  Bb7 {[%clk 0:02:25]} 13. Rc1 {[%clk 0:02:13]}  Rc8 {[%clk 0:02:24]} 14. Ne3 {[%clk 0:02:13]}  Nb4 {[%clk 0:02:07]} 15. Ne5 {[%clk 0:01:58]}  Nbd5 {[%clk 0:01:52]} 16. Bh2 {[%clk 0:01:54]}  Nxe3 {[%clk 0:01:42]} 17. fxe3 {[%clk 0:01:55]}  Nd5 {[%clk 0:01:42]} 18. Qe2 {[%clk 0:01:49]}  Bg5 {[%clk 0:01:41]} 19. Bf4 {[%clk 0:01:42]}  Nxf4 {[%clk 0:01:36]} 20. exf4 {[%clk 0:01:41]}  Qxd4+ {[%clk 0:01:36]} 21. Kh1 {[%clk 0:01:42]}  Bxf4 {[%clk 0:01:32]} 22. Nxf7 {[%clk 0:01:38]}  Bxc1 {[%clk 0:00:58]} 23. Bxe6 {[%clk 0:01:01]}  Bd5 {[%clk 0:00:48]} 24. Nd8+ {[%clk 0:00:45]}  Rf7 {[%clk 0:00:23]} 25. Rxf7 {[%clk 0:00:31]}  Bxe6 {[%clk 0:00:18]} 26. Rf8+ {[%clk 0:00:17]}  Kxf8 {[%clk 0:00:16]} 27. Nxe6+ {[%clk 0:00:18]}  Kg8 {[%clk 0:00:16]} 28. Nxd4 {[%clk 0:00:19]}  Bh6 {[%clk 0:00:12]} 29. Qe6+ {[%clk 0:00:19]} 1-0

[Event "November 21 Early 2023"]
[Site "https://www.chess.com"]
[Date "2023.11.21"]
[Round "4"]
[White "Osmonbekov, Talaibek"]
[Black "Khromkin, Andrey"]
[Result "0-1"]
[Board "191"]
[TimeControl "180+1"]
[WhiteFideId "2017253"]
[BlackFideId "4154126"]
[WhiteElo "2135"]
[BlackElo "2452"]
[WhiteTeam "USA"]
[BlackTeam "RUS"]
[WhiteClock "0:00:20"]
[BlackClock "0:00:14"]

1. d4 {[%clk 0:03:00]}  d5 {[%clk 0:02:59]} 2. Nc3 {[%clk 0:03:01]}  Nf6 {[%clk 0:02:58]} 3. Bf4 {[%clk 0:03:02]}  a6 {[%clk 0:02:56]} 4. e3 {[%clk 0:03:02]}  Bf5 {[%clk 0:02:55]} 5. Nf3 {[%clk 0:03:02]}  e6 {[%clk 0:02:55]} 6. Ne5 {[%clk 0:03:03]}  h6 {[%clk 0:02:52]} 7. g4 {[%clk 0:03:03]}  Bh7 {[%clk 0:02:51]} 8. h4 {[%clk 0:03:03]}  Nbd7 {[%clk 0:02:40]} 9. Bd3 {[%clk 0:03:00]}  Nxe5 {[%clk 0:02:37]} 10. dxe5 {[%clk 0:02:48]}  Ne4 {[%clk 0:02:35]} 11. Nxe4 {[%clk 0:02:41]}  Bxe4 {[%clk 0:02:31]} 12. Bxe4 {[%clk 0:02:36]}  dxe4 {[%clk 0:02:32]} 13. Qd4 {[%clk 0:02:29]}  Qxd4 {[%clk 0:02:25]} 14. exd4 {[%clk 0:02:29]}  c5 {[%clk 0:02:24]} 15. O-O-O {[%clk 0:02:23]}  O-O-O {[%clk 0:02:21]} 16. c3 {[%clk 0:02:17]}  cxd4 {[%clk 0:01:59]} 17. cxd4 {[%clk 0:02:13]}  Bb4 {[%clk 0:01:19]} 18. Rh3 {[%clk 0:02:13]}  g5 {[%clk 0:01:08]} 19. Be3 {[%clk 0:01:50]}  Be7 {[%clk 0:00:53]} 20. hxg5 {[%clk 0:01:23]}  hxg5 {[%clk 0:00:53]} 21. Rdh1 {[%clk 0:01:23]}  Rh4 {[%clk 0:00:47]} 22. Rxh4 {[%clk 0:01:10]}  gxh4 {[%clk 0:00:47]} 23. g5 {[%clk 0:01:10]}  Rh8 {[%clk 0:00:46]} 24. Rh3 {[%clk 0:01:07]}  Rh5 {[%clk 0:00:45]} 25. Kd2 {[%clk 0:01:06]}  Kd7 {[%clk 0:00:43]} 26. Bf4 {[%clk 0:01:04]}  Kc6 {[%clk 0:00:39]} 27. Ke3 {[%clk 0:01:03]}  Kd5 {[%clk 0:00:38]} 28. b3 {[%clk 0:00:59]}  b5 {[%clk 0:00:35]} 29. a4 {[%clk 0:00:46]}  bxa4 {[%clk 0:00:29]} 30. bxa4 {[%clk 0:00:45]}  a5 {[%clk 0:00:21]} 31. f3 {[%clk 0:00:36]}  exf3 {[%clk 0:00:19]} 32. Kxf3 {[%clk 0:00:36]}  Kxd4 {[%clk 0:00:17]} 33. Kg4 {[%clk 0:00:35]}  Rh7 {[%clk 0:00:15]} 34. Rh1 {[%clk 0:00:30]}  h3 {[%clk 0:00:15]} 35. Rd1+ {[%clk 0:00:28]}  Kc4 {[%clk 0:00:13]} 36. Rd7 {[%clk 0:00:27]}  Bb4 {[%clk 0:00:12]} 37. Bh2 {[%clk 0:00:24]}  Kb3 {[%clk 0:00:11]} 38. g6 {[%clk 0:00:24]}  Rg7 {[%clk 0:00:11]} 39. Rxf7 {[%clk 0:00:21]}  Rxg6+ {[%clk 0:00:12]} 40. Kxh3 {[%clk 0:00:21]}  Kxa4 {[%clk 0:00:11]} 41. Rf6 {[%clk 0:00:21]}  Rxf6 {[%clk 0:00:10]} 42. exf6 {[%clk 0:00:21]}  Kb3 {[%clk 0:00:11]} 43. Be5 {[%clk 0:00:20]}  a4 {[%clk 0:00:11]} 44. f7 {[%clk 0:00:21]}  a3 {[%clk 0:00:11]} 45. Kg4 {[%clk 0:00:21]}  Kc2 {[%clk 0:00:11]} 46. Kg5 {[%clk 0:00:20]}  Be7+ {[%clk 0:00:11]} 47. Kg6 {[%clk 0:00:20]}  Kb1 {[%clk 0:00:10]} 48. Kg7 {[%clk 0:00:20]}  a2 {[%clk 0:00:10]} 49. f8=Q {[%clk 0:00:20]}  Bxf8+ {[%clk 0:00:10]} 50. Kxf8 {[%clk 0:00:21]}  a1=Q {[%clk 0:00:11]} 51. Bxa1 {[%clk 0:00:20]}  Kxa1 {[%clk 0:00:11]} 52. Kf7 {[%clk 0:00:20]}  e5 {[%clk 0:00:12]} 53. Kf6 {[%clk 0:00:20]}  e4 {[%clk 0:00:12]} 54. Kf5 {[%clk 0:00:21]}  e3 {[%clk 0:00:13]} 55. Kf4 {[%clk 0:00:22]}  e2 {[%clk 0:00:14]} 56. Kf3 {[%clk 0:00:20]}  e1=Q {[%clk 0:00:14]} 0-1

[Event "November 21 Early 2023"]
[Site "https://www.chess.com"]
[Date "2023.11.21"]
[Round "4"]
[White "ATM622"]
[Black "seasidesunset"]
[Result "1-0"]
[Board "193"]
[TimeControl "180+1"]
[WhiteElo "2447"]
[BlackElo "2181"]
[WhiteClock "0:00:12"]
[BlackClock "0:00:00"]

1. d4 {[%clk 0:02:57]}  Nf6 {[%clk 0:02:59]} 2. c4 {[%clk 0:02:58]}  g6 {[%clk 0:02:59]} 3. g3 {[%clk 0:02:58]}  Bg7 {[%clk 0:02:59]} 4. Bg2 {[%clk 0:02:56]}  d5 {[%clk 0:02:59]} 5. Nf3 {[%clk 0:02:56]}  c6 {[%clk 0:02:59]} 6. O-O {[%clk 0:02:57]}  O-O {[%clk 0:02:59]} 7. Nbd2 {[%clk 0:02:56]}  b6 {[%clk 0:02:53]} 8. b3 {[%clk 0:02:56]}  Bb7 {[%clk 0:02:52]} 9. Bb2 {[%clk 0:02:56]}  Nbd7 {[%clk 0:02:52]} 10. Rc1 {[%clk 0:02:56]}  e6 {[%clk 0:02:52]} 11. Qc2 {[%clk 0:02:55]}  Rc8 {[%clk 0:02:50]} 12. e4 {[%clk 0:02:56]}  dxe4 {[%clk 0:02:50]} 13. Nxe4 {[%clk 0:02:56]}  Nxe4 {[%clk 0:02:49]} 14. Qxe4 {[%clk 0:02:57]}  Nf6 {[%clk 0:02:49]} 15. Qb1 {[%clk 0:02:42]}  c5 {[%clk 0:02:45]} 16. dxc5 {[%clk 0:02:41]}  bxc5 {[%clk 0:02:39]} 17. Rfd1 {[%clk 0:02:36]}  Qe7 {[%clk 0:02:28]} 18. Be5 {[%clk 0:02:31]}  Rfd8 {[%clk 0:02:23]} 19. Qb2 {[%clk 0:02:28]}  Ne8 {[%clk 0:02:15]} 20. Bxg7 {[%clk 0:02:26]}  Nxg7 {[%clk 0:02:16]} 21. h4 {[%clk 0:02:23]}  Nf5 {[%clk 0:02:14]} 22. Qe5 {[%clk 0:02:10]}  Bxf3 {[%clk 0:01:57]} 23. Bxf3 {[%clk 0:02:08]}  Nd4 {[%clk 0:01:57]} 24. Bg2 {[%clk 0:01:59]}  a5 {[%clk 0:01:36]} 25. h5 {[%clk 0:01:44]}  f6 {[%clk 0:01:36]} 26. Qe3 {[%clk 0:01:34]}  Kg7 {[%clk 0:01:28]} 27. g4 {[%clk 0:01:20]}  e5 {[%clk 0:01:09]} 28. f4 {[%clk 0:01:11]}  Re8 {[%clk 0:00:31]} 29. Re1 {[%clk 0:01:03]}  Qd7 {[%clk 0:00:25]} 30. h6+ {[%clk 0:00:54]}  Kxh6 {[%clk 0:00:17]} 31. fxe5+ {[%clk 0:00:50]}  g5 {[%clk 0:00:15]} 32. Qh3+ {[%clk 0:00:49]}  Kg7 {[%clk 0:00:12]} 33. exf6+ {[%clk 0:00:47]}  Kh8 {[%clk 0:00:12]} 34. Kh1 {[%clk 0:00:36]}  Ne6 {[%clk 0:00:08]} 35. Rcd1 {[%clk 0:00:30]}  Qf7 {[%clk 0:00:08]} 36. Qh6 {[%clk 0:00:30]}  Nf4 {[%clk 0:00:02]} 37. Be4 {[%clk 0:00:19]}  Rcd8 {[%clk 0:00:00]} 38. Kh2 {[%clk 0:00:12]} 1-0

[Event "November 21 Early 2023"]
[Site "https://www.chess.com"]
[Date "2023.11.21"]
[Round "4"]
[White "Mangialardo, Tiago Carvalho"]
[Black "Minko, Dmitry"]
[Result "0-1"]
[Board "196"]
[TimeControl "180+1"]
[WhiteFideId "2130718"]
[BlackFideId "24188468"]
[WhiteElo "2152"]
[BlackElo "1992"]
[WhiteTeam "BRA"]
[BlackTeam "FID"]
[WhiteClock "0:00:00"]
[BlackClock "0:00:23"]

1. e4 {[%clk 0:03:00]}  e5 {[%clk 0:02:59]} 2. Nf3 {[%clk 0:02:59]}  Nc6 {[%clk 0:02:59]} 3. Bb5 {[%clk 0:02:58]}  Nf6 {[%clk 0:02:59]} 4. O-O {[%clk 0:02:56]}  Nxe4 {[%clk 0:02:59]} 5. d4 {[%clk 0:02:56]}  Nd6 {[%clk 0:03:00]} 6. Bxc6 {[%clk 0:02:41]}  dxc6 {[%clk 0:03:01]} 7. dxe5 {[%clk 0:02:41]}  Nf5 {[%clk 0:03:02]} 8. Qxd8+ {[%clk 0:02:41]}  Kxd8 {[%clk 0:03:03]} 9. Bf4 {[%clk 0:02:25]}  Be7 {[%clk 0:02:48]} 10. Nbd2 {[%clk 0:02:01]}  Be6 {[%clk 0:02:46]} 11. b3 {[%clk 0:01:48]}  h5 {[%clk 0:02:45]} 12. Ne4 {[%clk 0:01:32]}  Ke8 {[%clk 0:02:40]} 13. c4 {[%clk 0:01:12]}  Rd8 {[%clk 0:02:39]} 14. Rad1 {[%clk 0:01:11]}  h4 {[%clk 0:02:36]} 15. Rxd8+ {[%clk 0:01:09]}  Bxd8 {[%clk 0:02:35]} 16. Rd1 {[%clk 0:01:10]}  h3 {[%clk 0:02:13]} 17. g3 {[%clk 0:01:01]}  b6 {[%clk 0:02:14]} 18. Bg5 {[%clk 0:00:40]}  Bxg5 {[%clk 0:01:57]} 19. Nfxg5 {[%clk 0:00:41]}  Ke7 {[%clk 0:01:54]} 20. Kf1 {[%clk 0:00:27]}  Bc8 {[%clk 0:01:50]} 21. Ke2 {[%clk 0:00:22]}  c5 {[%clk 0:01:50]} 22. Nc3 {[%clk 0:00:20]}  Nd4+ {[%clk 0:01:46]} 23. Ke3 {[%clk 0:00:18]}  Bb7 {[%clk 0:01:44]} 24. Nd5+ {[%clk 0:00:15]}  Bxd5 {[%clk 0:01:44]} 25. cxd5 {[%clk 0:00:15]}  f6 {[%clk 0:01:41]} 26. exf6+ {[%clk 0:00:11]}  Kxf6 {[%clk 0:01:42]} 27. Ne4+ {[%clk 0:00:11]}  Ke5 {[%clk 0:01:41]} 28. Nc3 {[%clk 0:00:11]}  Re8 {[%clk 0:01:38]} 29. f4+ {[%clk 0:00:11]}  Kf5+ {[%clk 0:01:38]} 30. Kd3 {[%clk 0:00:11]}  Kg4 {[%clk 0:01:07]} 31. Rf1 {[%clk 0:00:07]}  Nf3 {[%clk 0:01:04]} 32. Rf2 {[%clk 0:00:07]}  Re1 {[%clk 0:01:00]} 33. Ne4 {[%clk 0:00:05]}  Nd4 {[%clk 0:00:56]} 34. Nd2 {[%clk 0:00:05]}  Rd1 {[%clk 0:00:53]} 35. Ke3 {[%clk 0:00:04]}  Re1+ {[%clk 0:00:29]} 36. Kd3 {[%clk 0:00:04]}  Ra1 {[%clk 0:00:30]} 37. Nc4 {[%clk 0:00:03]}  Rg1 {[%clk 0:00:29]} 38. Ne3+ {[%clk 0:00:03]}  Kh5 {[%clk 0:00:28]} 39. g4+ {[%clk 0:00:02]}  Kg6 {[%clk 0:00:25]} 40. f5+ {[%clk 0:00:02]}  Kg5 {[%clk 0:00:25]} 41. Nc4 {[%clk 0:00:01]}  Rxg4 {[%clk 0:00:24]} 42. Ne5 {[%clk 0:00:01]}  Rg2 {[%clk 0:00:23]} 43. Nf7+ {[%clk 0:00:01]}  Kf6 {[%clk 0:00:23]} 44. Nh8 {[%clk 0:00:00]}  Rxf2 {[%clk 0:00:23]} 0-1